[Event "Live Chess"]
[Site "Chess.com"]
[Date "2024.06.01"]
[Round "-"]
[White "KGreenGator"]
[Black "gunslinger222"]
[Result "0-1"]
[WhiteElo "1767"]
[BlackElo "2270"]
[TimeControl "300"]
[EndTime "9:14:23 PDT"]
[Termination "gunslinger222 won by resignation"]

1. c4 {[%clk 0:04:57.9]} 1... e6 {[%clk 0:04:58.3]} 2. d4 {[%clk 0:04:56]} 2...
d5 {[%clk 0:04:57.9]} 3. e3 {[%clk 0:04:54.4]} 3... Nf6 {[%clk 0:04:56.7]} 4.
Nf3 {[%clk 0:04:52.5]} 4... Be7 {[%clk 0:04:55.4]} 5. Nc3 {[%clk 0:04:50]} 5...
O-O {[%clk 0:04:54.9]} 6. Bd2 {[%clk 0:04:48.3]} 6... b6 {[%clk 0:04:54.3]} 7.
a3 {[%clk 0:04:45.4]} 7... Bb7 {[%clk 0:04:53.7]} 8. h3 {[%clk 0:04:41.6]} 8...
c5 {[%clk 0:04:52.7]} 9. cxd5 {[%clk 0:04:39.7]} 9... exd5 {[%clk 0:04:50]} 10.
Be2 {[%clk 0:04:35.8]} 10... Re8 {[%clk 0:04:46.3]} 11. O-O {[%clk 0:04:33.8]}
11... Nc6 {[%clk 0:04:42.8]} 12. Bb5 {[%clk 0:04:31.7]} 12... a6 {[%clk
0:04:37.9]} 13. Bxc6 {[%clk 0:04:30.6]} 13... Bxc6 {[%clk 0:04:37.8]} 14. Ne5
{[%clk 0:04:29.3]} 14... Bb7 {[%clk 0:04:37.4]} 15. Re1 {[%clk 0:04:23.6]} 15...
Bd6 {[%clk 0:04:34.8]} 16. Nf3 {[%clk 0:04:21]} 16... Ne4 {[%clk 0:04:25.2]} 17.
dxc5 {[%clk 0:04:08.3]} 17... bxc5 {[%clk 0:04:14.5]} 18. Qb3 {[%clk 0:04:01.7]}
18... Rb8 {[%clk 0:04:04.4]} 19. Qc2 {[%clk 0:03:55.4]} 19... Nxd2 {[%clk
0:03:51.9]} 20. Nxd2 {[%clk 0:03:52]} 20... Qf6 {[%clk 0:03:41.3]} 21. Qd3
{[%clk 0:03:45.1]} 21... Red8 {[%clk 0:03:32.4]} 22. Nf3 {[%clk 0:03:39.8]}
22... g6 {[%clk 0:03:22.7]} 23. Kh1 {[%clk 0:03:38]} 23... Bf8 {[%clk
0:02:51.3]} 24. Rad1 {[%clk 0:03:34.4]} 24... d4 {[%clk 0:02:41.3]} 25. exd4
{[%clk 0:03:31]} 25... cxd4 {[%clk 0:02:40.4]} 26. Nxd4 {[%clk 0:03:15.3]} 26...
Qxf2 {[%clk 0:02:38.8]} 27. Re2 {[%clk 0:02:49.2]} 27... Bxg2+ {[%clk
0:02:36.7]} 28. Kh2 {[%clk 0:02:47.7]} 28... Bd6+ {[%clk 0:02:36]} 0-1

[Event "Live Chess"]
[Site "Chess.com"]
[Date "2024.06.01"]
[Round "-"]
[White "DoggyDalmatian"]
[Black "Outspanner"]
[Result "0-1"]
[WhiteElo "1505"]
[BlackElo "1537"]
[TimeControl "300"]
[EndTime "9:14:29 PDT"]
[Termination "Outspanner won by checkmate"]

1. e4 {[%clk 0:04:55.9]} 1... c5 {[%clk 0:04:57.9]} 2. Nf3 {[%clk 0:04:54.4]}
2... e6 {[%clk 0:04:56.7]} 3. d4 {[%clk 0:04:49.3]} 3... cxd4 {[%clk 0:04:55.8]}
4. Nxd4 {[%clk 0:04:49.2]} 4... a6 {[%clk 0:04:55.4]} 5. Nc3 {[%clk 0:04:48.6]}
5... Qc7 {[%clk 0:04:51.9]} 6. Be3 {[%clk 0:04:47.5]} 6... Bb4 {[%clk
0:04:49.4]} 7. Bd2 {[%clk 0:04:44.1]} 7... Nf6 {[%clk 0:04:44.2]} 8. Bd3 {[%clk
0:04:40]} 8... Nc6 {[%clk 0:04:28.4]} 9. Nb3 {[%clk 0:04:34.3]} 9... Bd6 {[%clk
0:04:09.2]} 10. Qe2 {[%clk 0:04:24.7]} 10... Ne5 {[%clk 0:03:53.7]} 11. h3
{[%clk 0:04:16.3]} 11... b5 {[%clk 0:03:50.5]} 12. O-O {[%clk 0:04:13.6]} 12...
Bb7 {[%clk 0:03:43.2]} 13. f4 {[%clk 0:04:09.7]} 13... Ng6 {[%clk 0:03:21.2]}
14. e5 {[%clk 0:04:05.4]} 14... Bc5+ {[%clk 0:03:15.5]} 15. Be3 {[%clk
0:04:00.1]} 15... Bxe3+ {[%clk 0:03:11.3]} 16. Qxe3 {[%clk 0:04:00]} 16... Nd5
{[%clk 0:03:09.4]} 17. Nxd5 {[%clk 0:03:55.1]} 17... Bxd5 {[%clk 0:03:09.3]} 18.
Rac1 {[%clk 0:03:47.6]} 18... Rc8 {[%clk 0:02:57.9]} 19. f5 {[%clk 0:03:40.2]}
19... Nxe5 {[%clk 0:02:44.1]} 20. fxe6 {[%clk 0:03:32.7]} 20... dxe6 {[%clk
0:02:41.6]} 21. Be2 {[%clk 0:03:23.6]} 21... O-O {[%clk 0:02:30.1]} 22. c3
{[%clk 0:03:11]} 22... Qc6 {[%clk 0:02:12.7]} 23. Nd4 {[%clk 0:03:06.4]} 23...
Qc5 {[%clk 0:02:06.1]} 24. Qxe5 {[%clk 0:02:59.5]} 24... f6 {[%clk 0:02:01.6]}
25. Qg3 {[%clk 0:02:52.3]} 25... e5 {[%clk 0:01:58.9]} 26. Qe3 {[%clk
0:02:38.6]} 26... exd4 {[%clk 0:01:56.2]} 27. cxd4 {[%clk 0:02:37.1]} 27... Qd6
{[%clk 0:01:49]} 28. a3 {[%clk 0:02:33.6]} 28... Rce8 {[%clk 0:01:35.5]} 29. Qf2
{[%clk 0:02:28.5]} 29... Re7 {[%clk 0:01:31.6]} 30. Rc2 {[%clk 0:02:24.3]} 30...
Rfe8 {[%clk 0:01:29.8]} 31. Rfc1 {[%clk 0:02:21.4]} 31... Be4 {[%clk 0:01:12.8]}
32. Rc3 {[%clk 0:02:15.3]} 32... Bd5 {[%clk 0:01:10.3]} 33. Rd1 {[%clk
0:02:01.4]} 33... Rxe2 {[%clk 0:01:07.5]} 34. Qg3 {[%clk 0:01:48.9]} 34... Rxg2+
{[%clk 0:01:04.5]} 35. Qxg2 {[%clk 0:01:46.5]} 35... Bxg2 {[%clk 0:01:03.2]} 36.
Kxg2 {[%clk 0:01:46.4]} 36... Re2+ {[%clk 0:01:01.8]} 37. Kf3 {[%clk 0:01:43.8]}
37... Rxb2 {[%clk 0:00:54.8]} 38. Re3 {[%clk 0:01:42]} 38... Qd5+ {[%clk
0:00:50.8]} 39. Kg3 {[%clk 0:01:37.5]} 39... Rg2+ {[%clk 0:00:46.2]} 40. Kf4
{[%clk 0:01:35.5]} 40... g5# {[%clk 0:00:39]} 0-1

[Event "Live Chess"]
[Site "Chess.com"]
[Date "2024.06.01"]
[Round "-"]
[White "ihtiandr82"]
[Black "nitrofish07"]
[Result "0-1"]
[WhiteElo "1517"]
[BlackElo "2123"]
[TimeControl "300"]
[EndTime "9:14:30 PDT"]
[Termination "nitrofish07 won by resignation"]

1. e4 {[%clk 0:04:55.3]} 1... c5 {[%clk 0:04:59]} 2. Nf3 {[%clk 0:04:53.7]} 2...
d6 {[%clk 0:04:58.6]} 3. d4 {[%clk 0:04:52.1]} 3... cxd4 {[%clk 0:04:58.5]} 4.
Nxd4 {[%clk 0:04:50.7]} 4... Nf6 {[%clk 0:04:58.3]} 5. Nc3 {[%clk 0:04:49.8]}
5... a6 {[%clk 0:04:58]} 6. Bg5 {[%clk 0:04:47.6]} 6... e6 {[%clk 0:04:57.4]} 7.
Be2 {[%clk 0:04:42.3]} 7... Be7 {[%clk 0:04:56.4]} 8. O-O {[%clk 0:04:40.5]}
8... Nbd7 {[%clk 0:04:54.8]} 9. Re1 {[%clk 0:04:38]} 9... h6 {[%clk 0:04:53.4]}
10. Be3 {[%clk 0:04:35.3]} 10... b5 {[%clk 0:04:52.4]} 11. a3 {[%clk 0:04:23.1]}
11... Bb7 {[%clk 0:04:51.4]} 12. Bf3 {[%clk 0:04:21.2]} 12... O-O {[%clk
0:04:50.1]} 13. Qd2 {[%clk 0:04:14]} 13... Rc8 {[%clk 0:04:48.1]} 14. Rac1
{[%clk 0:04:11.5]} 14... Re8 {[%clk 0:04:46.5]} 15. h3 {[%clk 0:03:49]} 15...
Ne5 {[%clk 0:04:45.4]} 16. Bf4 {[%clk 0:03:42.2]} 16... Nc4 {[%clk 0:04:39.8]}
17. Qe2 {[%clk 0:03:30.1]} 17... e5 {[%clk 0:04:37.9]} 18. b3 {[%clk 0:03:26.5]}
18... Nxa3 {[%clk 0:04:23.7]} 0-1

[Event "Live Chess"]
[Site "Chess.com"]
[Date "2024.06.01"]
[Round "-"]
[White "TheRedDrag"]
[Black "StoreySniper"]
[Result "0-1"]
[WhiteElo "2184"]
[BlackElo "2525"]
[TimeControl "300"]
[EndTime "9:14:37 PDT"]
[Termination "StoreySniper won by resignation"]

1. e4 {[%clk 0:04:57.6]} 1... g6 {[%clk 0:04:59.5]} 2. d4 {[%clk 0:04:56.6]}
2... Bg7 {[%clk 0:04:59.2]} 3. Nf3 {[%clk 0:04:56.3]} 3... c5 {[%clk 0:04:58.6]}
4. c3 {[%clk 0:04:55.2]} 4... cxd4 {[%clk 0:04:58]} 5. cxd4 {[%clk 0:04:55.1]}
5... d5 {[%clk 0:04:57.6]} 6. e5 {[%clk 0:04:54.1]} 6... Nc6 {[%clk 0:04:57.1]}
7. Nc3 {[%clk 0:04:51.4]} 7... Bg4 {[%clk 0:04:56.5]} 8. Be2 {[%clk 0:04:50.4]}
8... e6 {[%clk 0:04:55.8]} 9. h3 {[%clk 0:04:49.6]} 9... Bxf3 {[%clk 0:04:54.1]}
10. Bxf3 {[%clk 0:04:49.5]} 10... Nge7 {[%clk 0:04:53.6]} 11. O-O {[%clk
0:04:45.5]} 11... Nf5 {[%clk 0:04:52.4]} 12. Be3 {[%clk 0:04:37.4]} 12... O-O
{[%clk 0:04:48.1]} 13. Ne2 {[%clk 0:04:33.5]} 13... Qb6 {[%clk 0:04:45.7]} 14.
Qd2 {[%clk 0:04:30.2]} 14... Nh4 {[%clk 0:04:34.2]} 15. Rac1 {[%clk 0:04:21.4]}
15... Nxf3+ {[%clk 0:04:32.8]} 16. gxf3 {[%clk 0:04:20.9]} 16... f6 {[%clk
0:04:25.4]} 17. f4 {[%clk 0:04:18.8]} 17... fxe5 {[%clk 0:04:24.3]} 18. fxe5
{[%clk 0:04:14.3]} 18... Ne7 {[%clk 0:04:08.5]} 19. Ng3 {[%clk 0:04:06.8]} 19...
Nf5 {[%clk 0:04:05.6]} 20. Nxf5 {[%clk 0:04:05.4]} 20... Rxf5 {[%clk 0:04:04.4]}
21. b3 {[%clk 0:04:00.8]} 21... Raf8 {[%clk 0:04:03.3]} 22. Rc5 {[%clk
0:03:51.6]} 22... Qd8 {[%clk 0:03:56.2]} 23. Kh2 {[%clk 0:03:47.8]} 23... Qh4
{[%clk 0:03:51.2]} 24. Rc2 {[%clk 0:03:36]} 24... Rf3 {[%clk 0:03:49]} 0-1

[Event "Live Chess"]
[Site "Chess.com"]
[Date "2024.06.01"]
[Round "-"]
[White "Tatarinov_Maxim"]
[Black "Mangoalo"]
[Result "1-0"]
[WhiteElo "2281"]
[BlackElo "996"]
[TimeControl "300"]
[EndTime "9:14:40 PDT"]
[Termination "Tatarinov_Maxim won by resignation"]

1. Nf3 {[%clk 0:04:55.9]} 1... e6 {[%clk 0:04:59.9]} 2. g3 {[%clk 0:04:54.4]}
2... d5 {[%clk 0:04:59]} 3. Bg2 {[%clk 0:04:53.6]} 3... Nc6 {[%clk 0:04:58.5]}
4. O-O {[%clk 0:04:52.3]} 4... Bc5 {[%clk 0:04:58]} 5. b3 {[%clk 0:04:51.4]}
5... Bd7 {[%clk 0:04:57.6]} 6. Bb2 {[%clk 0:04:50.7]} 6... a6 {[%clk 0:04:56.7]}
7. Bxg7 {[%clk 0:04:47.7]} 7... e5 {[%clk 0:04:48.1]} 8. Bxh8 {[%clk 0:04:46.1]}
8... f6 {[%clk 0:04:46.5]} 9. c4 {[%clk 0:04:40.3]} 9... e4 {[%clk 0:04:44.7]}
10. Nh4 {[%clk 0:04:36.9]} 10... d4 {[%clk 0:04:42]} 11. Bxe4 {[%clk 0:04:34.4]}
11... f5 {[%clk 0:04:40]} 12. Bxf5 {[%clk 0:04:30.5]} 12... Bxf5 {[%clk
0:04:39.9]} 13. Nxf5 {[%clk 0:04:29.9]} 1-0

[Event "Live Chess"]
[Site "Chess.com"]
[Date "2024.06.01"]
[Round "-"]
[White "booktrunk"]
[Black "KwikPhoenix"]
[Result "0-1"]
[WhiteElo "1376"]
[BlackElo "2464"]
[TimeControl "300"]
[EndTime "9:14:48 PDT"]
[Termination "KwikPhoenix won by resignation"]

1. d4 {[%clk 0:04:53.4]} 1... f5 {[%clk 0:04:56.6]} 2. Nc3 {[%clk 0:04:49.7]}
2... e6 {[%clk 0:04:55.1]} 3. Bf4 {[%clk 0:04:46.9]} 3... Nf6 {[%clk 0:04:50.3]}
4. Nb5 {[%clk 0:04:44.2]} 4... d6 {[%clk 0:04:48.2]} 5. e3 {[%clk 0:04:41.7]}
5... a6 {[%clk 0:04:46.9]} 6. Nc3 {[%clk 0:04:39.2]} 6... Be7 {[%clk 0:04:42.8]}
7. Bd3 {[%clk 0:04:36.8]} 7... O-O {[%clk 0:04:42.2]} 8. Nge2 {[%clk 0:04:31.1]}
8... Nc6 {[%clk 0:04:40.9]} 9. O-O {[%clk 0:04:29]} 9... e5 {[%clk 0:04:39.1]}
10. dxe5 {[%clk 0:04:25.5]} 10... dxe5 {[%clk 0:04:39]} 11. Bc4+ {[%clk
0:04:21.9]} 11... Kh8 {[%clk 0:04:37.7]} 12. Qxd8 {[%clk 0:04:20.3]} 12... Rxd8
{[%clk 0:04:37.6]} 13. Bg3 {[%clk 0:04:18.3]} 13... b5 {[%clk 0:04:35.8]} 14.
Bb3 {[%clk 0:04:15.5]} 14... Bb7 {[%clk 0:04:33.3]} 15. a3 {[%clk 0:04:12.6]}
15... g6 {[%clk 0:04:25.4]} 16. Rfd1 {[%clk 0:04:11.1]} 16... Bd6 {[%clk
0:04:24.1]} 17. Nd5 {[%clk 0:04:05.4]} 17... Nxd5 {[%clk 0:04:20]} 18. Bxd5
{[%clk 0:04:02.2]} 18... Na5 {[%clk 0:04:19.4]} 19. Bxb7 {[%clk 0:04:00.1]}
19... Nxb7 {[%clk 0:04:19.3]} 20. Nc3 {[%clk 0:03:55.2]} 20... Kg7 {[%clk
0:04:15.8]} 21. f4 {[%clk 0:03:41.2]} 21... e4 {[%clk 0:04:13]} 22. Nd5 {[%clk
0:03:36.4]} 22... Rab8 {[%clk 0:04:00.3]} 23. h3 {[%clk 0:03:26.3]} 23... c6
{[%clk 0:03:54.2]} 24. Nc3 {[%clk 0:03:16.1]} 24... Bc5 {[%clk 0:03:52.9]} 25.
Bf2 {[%clk 0:03:09.9]} 25... Nd6 {[%clk 0:03:50.7]} 26. b4 {[%clk 0:03:04]}
26... Bb6 {[%clk 0:03:47.7]} 27. Kf1 {[%clk 0:02:54.3]} 27... Nc4 {[%clk
0:03:39.9]} 28. Ke2 {[%clk 0:02:45.7]} 28... Kf7 {[%clk 0:03:35.8]} 29. Rxd8
{[%clk 0:02:42.9]} 29... Rxd8 {[%clk 0:03:35.7]} 30. Rd1 {[%clk 0:02:25.3]}
30... Rxd1 {[%clk 0:03:29.2]} 31. Nxd1 {[%clk 0:02:23.5]} 31... Nxa3 {[%clk
0:03:26.8]} 32. Kd2 {[%clk 0:02:20]} 32... Nc4+ {[%clk 0:03:24.2]} 33. Kc3
{[%clk 0:02:17.4]} 33... a5 {[%clk 0:03:22.4]} 34. Bg1 {[%clk 0:02:13.7]} 34...
Ke6 {[%clk 0:03:14.1]} 35. bxa5 {[%clk 0:02:08.7]} 35... Bxa5+ {[%clk
0:03:10.7]} 36. Kb3 {[%clk 0:02:05.4]} 36... h6 {[%clk 0:02:58.2]} 37. c3 {[%clk
0:02:03.1]} 37... Bb6 {[%clk 0:02:56.6]} 38. Kb4 {[%clk 0:01:55.4]} 38... g5
{[%clk 0:02:51.7]} 39. fxg5 {[%clk 0:01:53.2]} 39... hxg5 {[%clk 0:02:51.6]} 40.
Bf2 {[%clk 0:01:50.7]} 40... f4 {[%clk 0:02:48.2]} 41. exf4 {[%clk 0:01:31.5]}
41... e3 {[%clk 0:02:46.2]} 42. Nxe3 {[%clk 0:01:26.6]} 42... Nxe3 {[%clk
0:02:42.3]} 43. fxg5 {[%clk 0:01:22.7]} 43... Nd5+ {[%clk 0:02:41.8]} 0-1

[Event "Live Chess"]
[Site "Chess.com"]
[Date "2024.06.01"]
[Round "-"]
[White "Enhard"]
[Black "Grace6363"]
[Result "0-1"]
[WhiteElo "1426"]
[BlackElo "1124"]
[TimeControl "300"]
[EndTime "9:14:52 PDT"]
[Termination "Grace6363 won by resignation"]

1. d4 {[%clk 0:04:58]} 1... Nf6 {[%clk 0:04:56.8]} 2. Bg5 {[%clk 0:04:56.7]}
2... e6 {[%clk 0:04:53.2]} 3. e4 {[%clk 0:04:54.8]} 3... d6 {[%clk 0:04:50.2]}
4. e5 {[%clk 0:04:53.1]} 4... dxe5 {[%clk 0:04:40.5]} 5. dxe5 {[%clk 0:04:47.5]}
5... Qxd1+ {[%clk 0:04:39.2]} 6. Kxd1 {[%clk 0:04:46.5]} 6... Ne4 {[%clk
0:04:37.4]} 7. Bf4 {[%clk 0:04:41.3]} 7... Nxf2+ {[%clk 0:04:35.4]} 8. Ke2
{[%clk 0:04:37.3]} 8... Nxh1 {[%clk 0:04:34.3]} 9. Nf3 {[%clk 0:04:32.6]} 9...
Bd7 {[%clk 0:04:27.8]} 10. Nc3 {[%clk 0:04:29.6]} 10... c6 {[%clk 0:04:21.7]}
11. g3 {[%clk 0:04:27.4]} 11... Bb4 {[%clk 0:04:13.4]} 12. Ne4 {[%clk
0:04:21.4]} 12... Be7 {[%clk 0:04:03.4]} 13. Bg2 {[%clk 0:04:19.9]} 13... Nxg3+
{[%clk 0:03:59.5]} 14. Bxg3 {[%clk 0:04:16.8]} 14... Na6 {[%clk 0:03:53.7]} 15.
a3 {[%clk 0:04:06]} 15... c5 {[%clk 0:03:52.4]} 16. c4 {[%clk 0:04:02.1]} 16...
b5 {[%clk 0:03:48.3]} 17. b3 {[%clk 0:03:48.4]} 17... bxc4 {[%clk 0:03:45.2]}
18. bxc4 {[%clk 0:03:47.1]} 18... Rb8 {[%clk 0:03:41.7]} 19. Nfd2 {[%clk
0:03:29.3]} 19... Ba4 {[%clk 0:03:31.3]} 20. Nc3 {[%clk 0:03:10.5]} 20... Bd7
{[%clk 0:03:18.4]} 21. Rf1 {[%clk 0:02:45]} 21... f6 {[%clk 0:03:15.2]} 22. exf6
{[%clk 0:02:39]} 22... Bxf6 {[%clk 0:03:14.4]} 23. Nce4 {[%clk 0:02:36]} 23...
Be7 {[%clk 0:03:09.3]} 24. Bf3 {[%clk 0:02:31.5]} 24... Rf8 {[%clk 0:02:58.2]}
25. Bh5+ {[%clk 0:02:28]} 25... g6 {[%clk 0:02:57.4]} 26. Rxf8+ {[%clk
0:02:26.8]} 26... Kxf8 {[%clk 0:02:56.2]} 27. Bf3 {[%clk 0:02:23.5]} 27... Rb2
{[%clk 0:02:33]} 28. Be5 {[%clk 0:02:20.3]} 28... Ra2 {[%clk 0:02:27.1]} 29. Bf6
{[%clk 0:01:52]} 29... Rxa3 {[%clk 0:02:22.7]} 30. Bg4 {[%clk 0:01:23.9]} 30...
Nc7 {[%clk 0:02:10.3]} 31. Bb2 {[%clk 0:01:18.3]} 31... Ra2 {[%clk 0:02:08.5]}
32. Be5 {[%clk 0:01:15]} 32... Na6 {[%clk 0:01:52.9]} 33. Nc3 {[%clk 0:01:11.6]}
33... Rc2 {[%clk 0:01:44.5]} 34. Ne4 {[%clk 0:01:06.8]} 34... Nb4 {[%clk
0:01:40.2]} 35. Nc3 {[%clk 0:00:52.3]} 35... Bg5 {[%clk 0:01:33.7]} 36. Ne4
{[%clk 0:00:31.6]} 36... Bxd2 {[%clk 0:01:31.2]} 37. Nxd2 {[%clk 0:00:29.8]}
37... h5 {[%clk 0:01:26.4]} 38. Bd6+ {[%clk 0:00:29.1]} 38... Kf7 {[%clk
0:01:23.7]} 39. Bf3 {[%clk 0:00:27.8]} 39... Nc6 {[%clk 0:01:14.5]} 40. Bxc5
{[%clk 0:00:26.1]} 40... Ne5 {[%clk 0:01:07.4]} 41. Be4 {[%clk 0:00:22.9]} 41...
Nxc4 {[%clk 0:01:04.3]} 42. Bxc2 {[%clk 0:00:20]} 42... Nxd2 {[%clk 0:00:54]}
43. Kxd2 {[%clk 0:00:19.9]} 43... a5 {[%clk 0:00:50.2]} 44. Ba7 {[%clk
0:00:19.8]} 44... a4 {[%clk 0:00:46.7]} 45. Bc5 {[%clk 0:00:19.7]} 45... Bb5
{[%clk 0:00:43.6]} 46. Ba3 {[%clk 0:00:18.4]} 46... Kf6 {[%clk 0:00:41.6]} 47.
Bb2+ {[%clk 0:00:16.9]} 47... e5 {[%clk 0:00:40]} 48. Be4 {[%clk 0:00:14.8]}
48... Kg5 {[%clk 0:00:34.9]} 49. Ke1 {[%clk 0:00:13]} 49... Kf4 {[%clk
0:00:31.6]} 50. Kf2 {[%clk 0:00:12.9]} 50... Kxe4 {[%clk 0:00:30.6]} 0-1

[Event "Live Chess"]
[Site "Chess.com"]
[Date "2024.06.01"]
[Round "-"]
[White "Richardallis"]
[Black "DJ_Lambton"]
[Result "1-0"]
[WhiteElo "1906"]
[BlackElo "1739"]
[TimeControl "300"]
[EndTime "9:15:03 PDT"]
[Termination "Richardallis won by resignation"]

1. d4 {[%clk 0:04:51.9]} 1... d5 {[%clk 0:04:58.8]} 2. Nf3 {[%clk 0:04:50.7]}
2... Nf6 {[%clk 0:04:58.1]} 3. Bg5 {[%clk 0:04:50.2]} 3... Bf5 {[%clk
0:04:57.3]} 4. Nbd2 {[%clk 0:04:48.4]} 4... Nbd7 {[%clk 0:04:56.7]} 5. e3 {[%clk
0:04:46.9]} 5... e6 {[%clk 0:04:56.1]} 6. Bd3 {[%clk 0:04:46.1]} 6... Bg6 {[%clk
0:04:54.2]} 7. e4 {[%clk 0:04:44.1]} 7... dxe4 {[%clk 0:04:53.2]} 8. Nxe4 {[%clk
0:04:43.6]} 8... Be7 {[%clk 0:04:51.6]} 9. Bxf6 {[%clk 0:04:42.5]} 9... Nxf6
{[%clk 0:04:50.6]} 10. Nxf6+ {[%clk 0:04:41]} 10... Bxf6 {[%clk 0:04:50.5]} 11.
c3 {[%clk 0:04:39.6]} 11... Bxd3 {[%clk 0:04:49.1]} 12. Qxd3 {[%clk 0:04:39.1]}
12... O-O {[%clk 0:04:48.5]} 13. O-O {[%clk 0:04:37.6]} 13... Rc8 {[%clk
0:04:48]} 14. Rad1 {[%clk 0:04:34.6]} 14... c5 {[%clk 0:04:47.5]} 15. dxc5
{[%clk 0:04:33.5]} 15... Rxc5 {[%clk 0:04:45.1]} 16. Qxd8 {[%clk 0:04:30.6]}
16... Rxd8 {[%clk 0:04:45]} 17. Rxd8+ {[%clk 0:04:29.1]} 17... Bxd8 {[%clk
0:04:44.9]} 18. Rd1 {[%clk 0:04:27.9]} 18... Rc8 {[%clk 0:04:40]} 19. Rd7 {[%clk
0:04:25.9]} 19... Bb6 {[%clk 0:04:38.5]} 20. Ne5 {[%clk 0:04:19]} 20... Rd8
{[%clk 0:04:35.1]} 21. Kf1 {[%clk 0:04:10.2]} 21... Rxd7 {[%clk 0:04:34.2]} 22.
Nxd7 {[%clk 0:04:09.4]} 22... Bc7 {[%clk 0:04:33.9]} 23. Nc5 {[%clk 0:04:05]}
23... b6 {[%clk 0:04:32.9]} 24. Nd3 {[%clk 0:04:03.7]} 24... f6 {[%clk
0:04:32.1]} 25. Nb4 {[%clk 0:04:00.2]} 25... Kf7 {[%clk 0:04:30.7]} 26. Nc6
{[%clk 0:03:58.6]} 26... a5 {[%clk 0:04:28.5]} 27. g3 {[%clk 0:03:57.8]} 27...
e5 {[%clk 0:04:27.3]} 28. a4 {[%clk 0:03:56.6]} 28... Ke6 {[%clk 0:04:26.6]} 29.
Na7 {[%clk 0:03:52]} 29... Bd6 {[%clk 0:04:23.1]} 30. Ke2 {[%clk 0:03:48.3]}
30... Bc5 {[%clk 0:04:20.6]} 31. f3 {[%clk 0:03:47.3]} 31... f5 {[%clk
0:04:19.5]} 32. h3 {[%clk 0:03:44.4]} 32... g6 {[%clk 0:04:18.5]} 33. g4 {[%clk
0:03:42]} 33... e4 {[%clk 0:04:15.6]} 34. fxe4 {[%clk 0:03:37.8]} 34... fxe4
{[%clk 0:04:15.5]} 35. Nb5 {[%clk 0:03:36]} 35... Ke5 {[%clk 0:04:14.3]} 36. Nc7
{[%clk 0:03:29.5]} 36... Kf4 {[%clk 0:04:13.3]} 37. Ne6+ {[%clk 0:03:28.4]}
37... Kg3 {[%clk 0:04:11.8]} 38. Nxc5 {[%clk 0:03:27.9]} 38... bxc5 {[%clk
0:04:11.5]} 39. Ke3 {[%clk 0:03:26.6]} 39... Kxh3 {[%clk 0:04:11]} 40. Kxe4
{[%clk 0:03:19.9]} 40... Kxg4 {[%clk 0:04:10.2]} 41. b4 {[%clk 0:03:17.7]} 41...
cxb4 {[%clk 0:04:06.3]} 42. cxb4 {[%clk 0:03:17]} 42... axb4 {[%clk 0:04:05.1]}
43. a5 {[%clk 0:03:14]} 43... b3 {[%clk 0:04:03.7]} 44. Kd3 {[%clk 0:03:13.3]}
44... h5 {[%clk 0:04:02.4]} 45. a6 {[%clk 0:03:12.1]} 45... h4 {[%clk
0:04:01.5]} 46. a7 {[%clk 0:03:10.9]} 46... b2 {[%clk 0:04:00.1]} 47. Kc2 {[%clk
0:03:09.8]} 47... b1=Q+ {[%clk 0:03:57]} 48. Kxb1 {[%clk 0:03:08.4]} 48... h3
{[%clk 0:03:56.7]} 49. a8=Q {[%clk 0:03:06.8]} 49... Kg3 {[%clk 0:03:55.9]} 50.
Qh1 {[%clk 0:03:04.4]} 50... g5 {[%clk 0:03:54.9]} 51. Kc2 {[%clk 0:03:03.6]}
51... g4 {[%clk 0:03:54.4]} 52. Kd2 {[%clk 0:03:03.1]} 52... Kh4 {[%clk
0:03:54]} 53. Ke2 {[%clk 0:03:02.6]} 53... g3 {[%clk 0:03:53]} 54. Kf3 {[%clk
0:03:02]} 54... g2 {[%clk 0:03:52.3]} 55. Qh2 {[%clk 0:03:01]} 55... Kg5 {[%clk
0:03:49.9]} 56. Kf2 {[%clk 0:02:58.6]} 56... Kh4 {[%clk 0:03:48.9]} 57. Qg3+
{[%clk 0:02:57.9]} 57... Kh5 {[%clk 0:03:47.7]} 58. Qxh3+ {[%clk 0:02:57.1]} 1-0

[Event "Live Chess"]
[Site "Chess.com"]
[Date "2024.06.01"]
[Round "-"]
[White "defenderalist"]
[Black "Crowded_House"]
[Result "1-0"]
[WhiteElo "1482"]
[BlackElo "1745"]
[TimeControl "300"]
[EndTime "9:15:04 PDT"]
[Termination "defenderalist won by resignation"]

1. e4 {[%clk 0:04:59.3]} 1... e6 {[%clk 0:04:57.5]} 2. d4 {[%clk 0:04:56.6]}
2... d5 {[%clk 0:04:56.1]} 3. Nc3 {[%clk 0:04:54.2]} 3... dxe4 {[%clk
0:04:54.3]} 4. Nxe4 {[%clk 0:04:54.1]} 4... Bd7 {[%clk 0:04:53.8]} 5. Nf3 {[%clk
0:04:51.9]} 5... Bc6 {[%clk 0:04:53.5]} 6. Bd3 {[%clk 0:04:50.2]} 6... Nd7
{[%clk 0:04:52.6]} 7. O-O {[%clk 0:04:48.7]} 7... Ngf6 {[%clk 0:04:52.2]} 8. Bg5
{[%clk 0:04:42.6]} 8... Be7 {[%clk 0:04:49.8]} 9. Nxf6+ {[%clk 0:04:41.2]} 9...
Nxf6 {[%clk 0:04:48.1]} 10. c3 {[%clk 0:04:36.2]} 10... O-O {[%clk 0:04:46.2]}
11. Ne5 {[%clk 0:04:35.3]} 11... Be8 {[%clk 0:04:41]} 12. f4 {[%clk 0:04:34.2]}
12... Nd7 {[%clk 0:04:40.2]} 13. Bxe7 {[%clk 0:04:32.9]} 13... Qxe7 {[%clk
0:04:37.9]} 14. f5 {[%clk 0:04:29]} 14... exf5 {[%clk 0:04:31]} 15. Nxd7 {[%clk
0:04:13.8]} 15... Bxd7 {[%clk 0:04:25.9]} 16. Bxf5 {[%clk 0:04:08.8]} 16... Bxf5
{[%clk 0:04:23.7]} 17. Rxf5 {[%clk 0:04:07.3]} 17... Qe3+ {[%clk 0:04:17.2]} 18.
Kh1 {[%clk 0:03:56.3]} 18... Rfe8 {[%clk 0:04:12.7]} 19. Qb3 {[%clk 0:03:48.5]}
19... Qe1+ {[%clk 0:04:02.5]} 20. Rf1 {[%clk 0:03:44.6]} 20... Qe4 {[%clk
0:03:55.2]} 21. Rxf7 {[%clk 0:03:34.1]} 21... Kh8 {[%clk 0:03:46.6]} 22. Raf1
{[%clk 0:03:31.7]} 22... h6 {[%clk 0:03:40.6]} 23. h3 {[%clk 0:03:27.4]} 23...
Re7 {[%clk 0:03:35.4]} 24. Rxe7 {[%clk 0:03:10.2]} 24... Qxe7 {[%clk 0:03:34.3]}
25. Qxb7 {[%clk 0:03:08.8]} 25... Qd8 {[%clk 0:03:31.2]} 26. Rf7 {[%clk
0:03:05]} 26... Rb8 {[%clk 0:03:27.3]} 27. Qxc7 {[%clk 0:03:01.3]} 27... Qxc7
{[%clk 0:03:24]} 28. Rxc7 {[%clk 0:02:59.9]} 28... Rxb2 {[%clk 0:03:23.7]} 29.
Rxa7 {[%clk 0:02:56.6]} 29... Rc2 {[%clk 0:03:21.8]} 30. Rc7 {[%clk 0:02:54.9]}
30... Rxa2 {[%clk 0:03:20.1]} 31. d5 {[%clk 0:02:52.9]} 31... Rd2 {[%clk
0:03:17.2]} 32. c4 {[%clk 0:02:52]} 32... Rd4 {[%clk 0:03:13.5]} 33. Rc6 {[%clk
0:02:49.3]} 33... Kg8 {[%clk 0:03:09.9]} 34. d6 {[%clk 0:02:48.4]} 34... Kf7
{[%clk 0:03:06.6]} 35. Rc7+ {[%clk 0:02:46.9]} 35... Ke6 {[%clk 0:03:02.9]} 36.
c5 {[%clk 0:02:44.6]} 36... Rc4 {[%clk 0:02:57.6]} 37. Re7+ {[%clk 0:02:36.7]}
37... Kf6 {[%clk 0:02:52.6]} 38. Rc7 {[%clk 0:02:20.9]} 38... Ke6 {[%clk
0:02:51.1]} 39. d7 {[%clk 0:02:15.7]} 39... Ke7 {[%clk 0:02:50.2]} 40. c6 {[%clk
0:02:12.3]} 40... Kd8 {[%clk 0:02:49.4]} 41. Rc8+ {[%clk 0:02:10.7]} 41... Ke7
{[%clk 0:02:46.1]} 42. d8=Q+ {[%clk 0:02:09.8]} 42... Kf7 {[%clk 0:02:45]} 1-0